bitfinex/quotes_ETHUSD_20251031
["timestamp","ask_amount","ask_price","bid_price","bid_amount"]
[1761912958886,0.9414,3880.3,3879.9,1.8041588]
[1761912959101,0.4824,3880.2,3879.9,1.8041588]
[1761912959322,0.2391,3880.0,3879.8,1.80421642]
[1761912959527,0.4568,3879.7,3879.6,1.80429802]
[1761912959700,0.1975,3879.9,3879.8,1.80421671]
[1761912960090,1.1389,3879.9,3879.4,0.78362553]
[1761912960311,0.459,3879.5,3879.4,2.58800346]
[1761912960627,0.6799,3879.9,3879.8,1.80421671]
[1761912960916,0.005,3880.7,3879.8,0.36085026]
[1761912961122,0.4824,3880.6,3879.8,0.485]
[1761912961299,0.4874,3880.7,3880.4,1.80391039]
[1761912961495,0.4824,3880.6,3880.5,0.02576987]
[1761912961700,0.4824,3880.6,3880.5,1.82966112]
[1761912961918,0.9414,3880.6,3880.5,1.82966112]
[1761912962427,0.459,3880.6,3880.5,2.19301827]
[1761912962624,0.005,3880.7,3880.6,1.80384476]
[1761912962828,0.005,3880.7,3880.6,2.28884476]
[1761912963289,0.005,3880.7,3880.6,4.29132476]
[1761912963623,0.005,3880.7,3880.6,5.53233881]
[1761912964331,0.001,3881.3,3881.1,1.80361237]
[1761912964527,0.001,3881.3,3881.1,9.95115574]
[1761912964749,0.001,3881.3,3881.1,9.92538985]
[1761912964916,0.0002,3881.2,3881.1,9.92538985]
[1761912965099,0.0002,3881.2,3881.1,11.145697]
[1761912965436,0.0002,3881.2,3881.1,4.55239952]
[1761912965437,0.4592,3881.2,3881.1,4.55239952]
[1761912965649,0.9416,3881.2,3881.1,3.33209237]
[1761912966246,0.0002,3881.2,3881.1,9.61408985]
[1761912966399,0.0002,3881.2,3881.1,9.74288985]
[1761912966822,0.0002,3881.2,3881.1,10.21688985]
[1761912967939,0.0002,3881.2,3881.1,10.62239385]
[1761912968258,0.0002,3881.2,3881.1,11.86500223]
[1761912968598,0.0002,3881.2,3881.1,10.98549823]
[1761912969239,0.0002,3881.2,3881.1,11.45949823]
[1761912969434,0.0002,3881.2,3881.1,11.86500223]
[1761912970631,0.0002,3881.2,3881.1,11.39100223]
[1761912970937,0.0002,3881.2,3881.1,10.98549823]
[1761912971138,0.0002,3881.2,3881.1,5.05970075]
[1761912971341,0.4592,3881.2,3881.1,4.57470075]
[1761912971536,0.4592,3881.2,3881.1,3.35785826]
[1761912971707,0.9416,3881.2,3881.1,1.95817826]
[1761912972638,0.4592,3881.2,3881.1,1.95817826]
[1761912972845,0.9416,3881.2,3881.1,1.95817826]
[1761912973216,0.9416,3881.2,3881.1,0.1288]
[1761912973418,0.1288,3881.1,3880.6,0.02576921]
[1761912973630,0.1288,3881.1,3880.4,0.1288]
[1761912973631,0.1975,3881.0,3880.5,1.80389125]
[1761912973819,0.1975,3881.0,3880.4,0.1288]
[1761912973820,0.6565,3880.5,3880.4,0.1288]
[1761912974027,0.6565,3880.5,3880.4,1.93273773]
[1761912974226,1.1389,3880.5,3880.4,1.80393773]
[1761912974843,0.459,3880.5,3880.4,1.80393773]
[1761912975029,0.459,3880.5,3880.4,2.18019023]
[1761912975205,0.9414,3880.5,3880.4,2.18019023]
[1761912975828,0.459,3880.5,3880.4,2.18019023]
[1761912976348,0.0002,3881.2,3881.1,1.80361237]
[1761912976546,0.0002,3881.2,3881.1,1.82937826]
[1761912976749,0.4592,3881.2,3881.1,1.82937826]
[1761912977046,0.0002,3881.2,3881.1,2.20556423]
[1761912977245,0.0002,3881.2,3881.1,2.33436423]
[1761912977540,0.0002,3881.2,3881.1,4.40154423]
[1761912979567,0.0002,3881.2,3881.1,4.19327834]
[1761912979921,0.0002,3881.2,3881.1,4.21904423]
[1761912980131,0.4673,3881.2,3881.1,3.70827834]
[1761912980346,0.0002,3881.2,3881.1,3.70827834]
[1761912980533,0.0002,3881.2,3881.1,3.73404423]
[1761912980850,0.0002,3881.2,3881.1,4.39644423]
[1761912981060,0.0002,3881.2,3881.1,4.88104423]
[1761912982952,0.0002,3881.2,3881.1,4.85527834]
[1761912983746,0.0002,3881.2,3881.1,4.85727834]
[1761912983950,0.0002,3881.2,3881.1,4.88304423]
[1761912984554,0.4673,3881.2,3881.1,3.71027834]
[1761912984751,0.4673,3881.2,3881.1,3.73604423]
[1761912985464,0.0002,3881.2,3881.1,3.73604423]
[1761912985836,0.4673,3881.2,3881.1,3.73604423]
[1761912987168,0.956,3881.2,3881.1,1.83137826]
[1761912987534,0.956,3881.2,3881.1,1.80561237]
[1761912987734,0.956,3881.2,3881.1,1.83137826]
[1761912987939,0.956,3881.2,3881.1,0.002]
[1761912989471,0.956,3881.2,3881.1,1.83137826]
[1761912989680,0.956,3881.2,3881.1,0.02776589]
[1761912989982,0.956,3881.2,3881.1,0.002]
[1761912990176,0.9552,3881.2,3881.1,0.002]
[1761912992352,2.7587659,3881.2,3880.7,0.002]
[1761912992655,2.7587659,3881.2,3880.3,0.002]
[1761912992656,0.405504,3880.7,3880.3,0.002]
[1761912992878,0.4671,3880.4,3880.3,0.002]
[1761912993350,2.75973773,3880.4,3880.3,0.002]
[1761912993574,0.9558,3880.4,3880.3,0.002]
[1761912994092,1.23176011,3880.4,3880.3,0.002]
[1761912994297,0.9558,3880.4,3880.3,0.002]
[1761912994674,0.1836,3880.8,3880.3,1.80596384]
[1761912994874,0.4887,3880.7,3880.4,0.02577053]
[1761912995283,0.4671,3880.4,3880.3,0.002]
[1761912995671,2.29218599,3881.4,3880.3,0.4819]
[1761912995893,0.4671,3880.4,3880.3,0.002]
[1761912996092,0.9558,3880.4,3880.3,0.002]
[1761912996267,0.4671,3880.4,3880.3,0.002]
[1761912996473,0.9558,3880.4,3880.3,0.002]
[1761912997224,1.0846,3880.4,3880.3,0.002]
[1761912997772,0.1836,3880.9,3880.3,0.4819]
[1761912998012,0.1288,3880.8,3880.7,1.80377471]
[1761912998718,0.4897,3881.3,3880.7,2.16712301]
[1761912999006,0.4897,3881.3,3880.8,0.02576788]
[1761912999383,0.6507,3880.9,3880.8,0.02576788]
[1761912999588,0.6507,3880.9,3880.6,1.80383945]
[1761912999785,0.6507,3880.9,3880.4,1.39968]
[1761912999786,0.2333,3880.7,3880.4,1.39968]
[1761913000095,0.2333,3880.7,3880.5,1.80389019]
[1761913000278,0.2333,3880.7,3880.5,2.30484889]
[1761913000608,0.4648,3880.6,3880.5,2.30484889]
[1761913000989,0.4648,3880.6,3880.5,0.5009587]
[1761913001180,0.4648,3880.6,3880.3,1.8059749]
[1761913001380,0.4648,3880.6,3880.4,1.80393754]
[1761913001576,0.2356,3880.5,3880.3,0.002]
[1761913001817,0.4625,3880.4,3880.3,0.002]
[1761913002932,0.9303,3880.4,3880.3,0.002]
[1761913005109,0.4678,3880.7,3880.3,1.80598422]
[1761913005309,0.4678,3880.7,3879.9,0.002]
[1761913005311,1.80412371,3880.0,3879.9,0.002]
[1761913005633,0.67511237,3880.0,3879.1,0.005]
[1761913005807,0.3903,3879.6,3879.1,0.005]
[1761913006007,0.8581,3879.6,3879.1,0.03077917]
[1761913007446,0.8581,3879.6,3879.1,0.005]
[1761913008535,0.8581,3879.6,3879.1,0.03077917]
[1761913008702,2.68818108,3879.6,3879.1,0.03077917]
[1761913009536,0.88387136,3879.6,3879.1,0.005]
[1761913009701,0.8581,3879.6,3879.1,0.005]
[1761913009900,0.8581,3879.6,3879.2,0.02577851]
[1761913010904,2.66240972,3879.6,3879.1,0.005]
[1761913011134,0.8581,3879.6,3879.1,0.005]
[1761913011511,0.3903,3879.6,3879.2,0.02577851]
[1761913011841,0.40426241,3880.0,3879.9,1.80417021]
[1761913011842,0.1288,3880.0,3879.9,1.80417021]
[1761913012137,0.40436947,3880.4,3879.9,1.80417021]
[1761913012138,0.40436947,3880.4,3880.0,1.80412371]
[1761913012314,0.40436947,3880.4,3880.1,1.82984703]
[1761913012514,0.40436947,3880.4,3880.1,0.02577253]
[1761913012833,0.40436947,3880.4,3880.3,1.80398422]
[1761913013046,0.40436947,3880.4,3880.1,1.944727]
[1761913013201,0.40436947,3880.4,3880.2,1.80402629]
[1761913013397,0.40436947,3880.4,3880.3,0.0257712]
[1761913013630,0.1288,3880.5,3880.3,0.0257712]
[1761913013836,0.4938,3880.4,3879.8,0.1288]
[1761913014142,0.1288,3880.5,3879.9,0.26586772]
[1761913014326,0.1288,3880.5,3880.1,1.80406404]
[1761913014505,0.1288,3880.5,3880.2,0.02577186]
[1761913015214,0.1288,3880.5,3880.4,2.25893773]
[1761913015415,0.128,3880.5,3880.4,2.25893773]
[1761913015650,0.001,3880.8,3880.6,1.80383253]
[1761913015948,0.001,3880.8,3880.7,2.6934209]
[1761913016258,0.001,3880.8,3880.7,2.66765236]
[1761913017503,0.001,3880.8,3880.7,4.06733236]
[1761913017733,0.001,3880.8,3880.7,4.5610009]
[1761913021508,0.4948,3880.8,3880.7,3.61233236]
[1761913021708,0.001,3880.8,3880.7,3.61233236]
[1761913021934,0.001,3880.8,3880.7,3.6381009]
[1761913022140,0.001,3880.8,3880.7,3.61233236]
[1761913022337,0.4948,3880.8,3880.7,1.80853408]
[1761913022542,0.4948,3880.8,3880.5,1.9326685]
[1761913022543,0.99,3880.8,3879.5,0.002]
[1761913022840,0.99,3880.8,3880.2,1.8040233]
[1761913022841,0.1857,3880.6,3880.2,1.8040233]
[1761913023048,0.1857,3880.6,3880.2,1.80400324]
[1761913023212,0.4907,3880.3,3879.6,0.02577585]
[1761913023413,0.4907,3880.3,3879.6,1.42545585]
[1761913023609,0.001,3880.8,3880.7,1.80379828]
[1761913024115,0.4948,3880.8,3880.7,1.80379828]
[1761913024526,0.001,3880.8,3880.7,2.25879828]
[1761913024743,0.001,3880.8,3880.7,4.15214682]
[1761913024945,0.001,3880.8,3880.7,10.31294228]
[1761913025270,0.001,3880.8,3880.7,11.49885603]
[1761913026861,0.001,3880.8,3880.7,4.87016057]
[1761913027160,0.001,3880.8,3880.7,3.65847828]
[1761913027355,0.001,3880.8,3880.7,4.15214682]
[1761913028933,0.001,3880.8,3880.7,4.12637828]
[1761913029255,0.001,3880.8,3880.7,4.55765082]
[1761913030071,0.001,3880.8,3880.7,4.53188228]
[1761913030278,0.001,3880.8,3880.7,5.74098772]
[1761913030762,0.001,3880.8,3880.7,3.46790372]
[1761913031081,0.001,3880.8,3880.7,2.25879828]
[1761913032556,0.001,3880.8,3880.7,2.38759828]
[1761913033435,0.001,3880.8,3880.7,2.88126682]
[1761913035233,0.001,3880.8,3880.7,4.68645082]
[1761913035564,0.001,3880.8,3880.7,8.52068228]
[1761913035862,0.001,3880.8,3880.7,10.12866772]
[1761913037056,0.1858,3883.0,3881.9,1.80324068]
[1761913037368,1.80694699,3884.7,3881.9,10.31237672]
[1761913037369,0.1858,3883.3,3881.9,10.31237672]
[1761913037568,0.1858,3883.3,3881.9,10.28661614]
[1761913037765,0.1858,3883.3,3881.9,11.51385869]
[1761913038431,1e-08,3882.7,3882.6,2.40221557]
[1761913038744,1e-08,3882.7,3882.6,9.58294296]
[1761913038938,1e-08,3882.7,3882.6,10.02508703]
[1761913039164,1e-08,3882.7,3882.6,10.43059103]
[1761913039366,1e-08,3882.7,3882.6,11.80476281]
[1761913039572,1e-08,3882.7,3882.6,4.42595333]
[1761913039741,1e-08,3882.7,3882.6,3.20259557]
[1761913040148,1e-08,3882.7,3882.6,3.2283515]
[1761913040348,1e-08,3882.7,3882.6,3.6973515]
[1761913040545,0.49160001,3883.5,3882.7,1.39968]
[1761913040745,0.1933,3882.9,3882.8,1.8028227]
[1761913040958,0.1933,3882.9,3882.8,2.16339557]
[1761913041140,0.6469,3882.9,3882.8,2.16339557]
[1761913041343,0.005,3883.7,3883.3,1.80254573]
[1761913041538,0.005,3883.7,3883.4,0.02575063]
[1761913041739,0.005,3883.7,3883.6,1.80245133]
[1761913042075,0.005,3883.7,3883.6,2.16552489]
[1761913042473,0.4586,3883.7,3883.6,2.16552489]
[1761913042779,0.005,3883.7,3883.6,4.05995419]
[1761913043282,0.4924,3884.6,3884.5,1.80203372]
[1761913043447,0.9487,3884.6,3884.1,1.80218635]
[1761913043650,0.9487,3884.6,3884.2,1.82787636]
[1761913043865,0.4577,3884.5,3884.2,0.02574532]
[1761913044067,0.2533,3884.3,3883.4,1.80254416]
[1761913044268,0.2533,3884.3,3884.2,1.8021729]
[1761913044573,0.2533,3884.3,3884.0,1.80222268]
[1761913044574,0.711,3884.3,3884.0,1.80222268]
[1761913044734,0.4542,3884.1,3884.0,1.8022657]
[1761913045139,0.005,3884.7,3884.0,1.8022657]
[1761913045140,0.005,3884.7,3884.0,0.4556]
[1761913045340,0.005,3884.7,3883.5,0.91340809]
[1761913045341,0.005,3884.7,3884.6,1.80198733]
[1761913045576,0.005,3884.7,3884.6,2.61799176]
[1761913045776,0.005,3884.7,3884.6,2.64373443]
[1761913046298,0.1885,3885.8,3885.6,1.80152357]
[1761913046578,0.4613,3885.7,3885.6,1.80152357]
[1761913046780,0.4613,3885.7,3885.6,1.82725962]
[1761913046977,0.4613,3885.7,3885.6,0.02573605]
[1761913047185,0.919,3885.7,3885.6,0.02573605]
[1761913047341,0.919,3885.7,3885.6,1.82725962]
[1761913047680,0.919,3885.7,3885.6,0.02573605]
[1761913047976,0.919,3885.7,3885.2,1.39968]
[1761913047977,1.06188,3885.7,3884.0,5.90610548]
[1761913048175,1.06188,3885.7,3883.3,1.80258797]
[1761913048176,0.2479,3885.5,3885.0,0.128]
[1761913048475,0.2479,3885.5,3885.0,1.92979689]
[1761913048775,0.4577,3885.4,3885.1,1.80174707]
[1761913048976,0.4563,3885.1,3885.0,0.128]
[1761913049141,0.4563,3885.1,3884.7,1.80190403]
[1761913049472,0.914,3885.1,3884.8,1.82762643]
[1761913049648,0.914,3885.1,3884.2,3.6043458]
[1761913049850,0.2479,3884.7,3884.2,0.56027258]
[1761913050062,0.2479,3884.7,3884.6,1.80198733]
[1761913050455,0.7056,3884.7,3884.6,1.80198733]
[1761913051025,0.2479,3884.7,3884.6,1.80198733]
[1761913051147,0.4577,3885.5,3884.6,0.48134267]
[1761913051349,0.006,3885.7,3884.9,1.39968]
[1761913051560,0.006,3885.7,3885.5,1.80152591]
[1761913051756,0.006,3885.7,3885.6,0.02573605]
[1761913052253,0.92,3885.7,3885.5,1.80156677]
[1761913052459,0.92,3885.7,3884.9,2.40545227]
[1761913052656,0.4577,3885.6,3885.2,1.8016927]
[1761913052846,0.4577,3885.6,3885.3,1.80164802]
[1761913053056,0.4577,3885.6,3885.4,1.8016087]
[1761913053475,0.4563,3885.5,3885.4,1.8016087]
[1761913053677,0.4563,3885.5,3885.1,1.80173226]
[1761913053858,0.2479,3885.3,3885.2,0.0257387]
[1761913054059,0.4637,3885.7,3885.2,1.82743632]
[1761913054245,0.4637,3885.7,3885.2,0.0257387]
[1761913054646,0.4637,3885.7,3885.4,1.80157592]
[1761913054875,0.4637,3885.7,3885.5,0.02573671]
[1761913055083,0.4563,3885.6,3885.5,1.82730664]
[1761913055481,0.4563,3885.6,3885.5,0.02573671]
[1761913055681,0.914,3885.6,3884.9,2.40545227]
[1761913055883,0.2479,3885.5,3885.1,1.80175265]
[1761913056183,0.2479,3885.5,3884.9,2.40545227]
[1761913056387,0.006,3885.7,3885.6,1.80152357]
[1761913056689,0.006,3885.7,3885.6,2.28285962]
[1761913057051,0.006,3885.7,3885.6,0.02573605]
[1761913057363,0.92,3885.7,3885.5,0.02573671]
[1761913057589,0.4637,3885.7,3885.5,0.02573671]
[1761913057755,0.4563,3885.5,3884.7,5.90610548]
[1761913057954,0.4563,3885.5,3884.8,2.21103957]
[1761913058355,0.006,3885.7,3885.6,1.80152357]
[1761913058573,0.006,3885.7,3885.3,1.80164891]
[1761913058782,0.006,3885.7,3885.6,1.80152357]
[1761913059306,0.006,3885.7,3885.6,0.128]
[1761913059307,0.4623,3885.7,3885.6,0.128]
[1761913059480,0.92,3885.7,3885.6,0.128]
[1761913059683,0.92,3885.7,3885.6,1.92952357]
[1761913059894,0.006,3885.7,3885.6,1.92952357]
[1761913060070,0.4623,3885.7,3885.6,0.15373605]
[1761913060271,0.4623,3885.7,3885.6,0.128]
[1761913060476,0.92,3885.7,3885.6,0.128]
[1761913062104,0.4623,3885.7,3885.6,0.128]
[1761913062318,0.92,3885.7,3885.6,0.128]
[1761913062671,0.92,3885.7,3885.6,1.92952357]
[1761913063285,0.92,3885.7,3885.6,0.128]
[1761913063902,0.92,3885.7,3884.9,1.39968]
[1761913064207,0.92,3885.7,3885.1,0.128]
[1761913064208,0.4577,3885.6,3885.1,0.128]
[1761913064577,0.4536,3885.2,3885.1,0.128]
[1761913064777,0.4577,3885.6,3885.1,0.128]
[1761913064984,0.4577,3885.6,3885.1,0.666768]
[1761913065314,0.4577,3885.6,3885.3,1.80161824]
[1761913065511,0.4536,3885.2,3885.1,1.92972009]
[1761913065713,0.4528,3885.2,3885.1,1.92972009]
[1761913065918,0.006,3885.7,3885.6,1.80152357]
[1761913066131,0.006,3885.7,3885.6,9.60610905]
[1761913066332,0.006,3885.7,3885.6,10.09520905]
[1761913067307,1e-08,3885.7,3885.6,10.50071305]
[1761913067538,1.80509367,3888.7,3885.6,10.50071305]
[1761913067539,0.4656,3887.4,3886.0,2.20684213]
[1761913067719,0.4656,3887.4,3886.0,5.1609486]
[1761913069024,0.4656,3887.2,3886.0,5.1609486]
[1761913069802,0.02577136,3888.6,3886.0,5.1609486]
[1761913069803,0.1914,3886.9,3886.0,4.2406112]
[1761913070024,0.6741,3886.9,3886.0,4.2406112]
[1761913070234,0.02577136,3887.6,3886.0,4.2406112]
[1761913070235,0.02577136,3887.6,3886.0,4.6931112]
[1761913070438,0.005,3887.7,3886.0,4.6931112]
[1761913070439,0.4827,3887.3,3886.0,4.6931112]
[1761913071004,0.4827,3887.3,3886.0,5.1243486]
[1761913071505,0.4827,3887.3,3886.0,5.0986152]
[1761913073446,0.6741,3886.9,3886.0,5.0986152]
[1761913073607,0.6741,3886.9,3886.0,4.6461152]
[1761913074215,0.6741,3886.9,3886.0,5.0986152]
[1761913074851,0.4827,3886.6,3886.0,2.3421312]
[1761913075143,0.4967,3886.1,3886.0,1.80133813]
[1761913075302,0.9794,3886.1,3886.0,1.80133813]
[1761913075716,0.001,3886.1,3886.0,1.80133813]
[1761913075918,0.001,3886.1,3886.0,1.92933813]
[1761913076141,0.001,3886.1,3886.0,1.95507153]
[1761913076643,0.001,3886.1,3886.0,1.92933813]
[1761913076936,0.4967,3886.1,3886.0,1.92933813]
[1761913077442,0.4967,3886.1,3886.0,0.128]
[1761913077649,0.9794,3886.1,3885.1,1.05622057]
[1761913077804,0.9794,3886.1,3885.8,1.9293901]
[1761913077805,0.1815,3885.9,3885.8,1.9293901]
[1761913078208,0.8556,3885.9,3885.8,1.9293901]
[1761913078462,0.8556,3885.9,3885.8,0.128]
[1761913078611,0.8556,3885.9,3885.8,1.80143085]
[1761913078951,0.1914,3886.0,3885.9,1.80138449]
[1761913079105,0.1914,3886.0,3885.9,1.82711855]
[1761913079310,1.1698,3886.0,3885.9,1.82711855]
[1761913079510,1.1698,3886.0,3885.8,0.128]
[1761913079737,0.6622,3885.9,3885.8,1.92943085]
[1761913081017,0.1795,3885.9,3885.8,1.92943085]
[1761913081627,0.6622,3885.9,3885.8,1.92943085]
[1761913081827,0.6622,3885.9,3885.8,0.128]
[1761913082136,0.6622,3885.9,3885.8,1.92943085]
[1761913082460,0.6622,3885.9,3885.8,1.80143085]
[1761913083064,0.1795,3885.9,3885.8,1.80143085]
[1761913083562,0.1795,3885.9,3885.8,1.82716557]
[1761913085138,0.001,3886.1,3885.9,1.80138449]
[1761913085356,0.4837,3886.1,3886.0,0.0257334]
[1761913085567,0.4837,3886.1,3885.3,5.90610548]
[1761913085568,1.384904,3886.1,3884.6,0.002]
[1761913085741,0.0972,3885.0,3884.6,0.002]
[1761913085941,0.4957,3884.7,3884.6,1.80398733]
[1761913086737,0.1914,3884.9,3884.8,1.80189456]
[1761913086933,0.1914,3884.9,3884.8,1.81474251]
[1761913087137,0.0972,3885.0,3884.9,1.80184818]
[1761913087373,0.1914,3885.4,3884.9,0.85265907]
[1761913087575,0.001,3886.1,3886.0,1.80133813]
[1761913087841,0.001,3886.1,3886.0,2.29213813]
[1761913088036,0.001,3886.1,3886.0,1.81416621]
[1761913088253,0.9794,3886.1,3886.0,0.01282808]
[1761913088437,0.9794,3886.1,3886.0,1.80133813]
[1761913089080,0.9794,3886.1,3885.6,0.002]
[1761913089281,0.4827,3886.0,3885.9,1.80138449]
[1761913089481,0.4957,3886.0,3885.9,1.81421422]
[1761913090191,0.001,3886.1,3886.0,1.80133813]
[1761913090566,0.4967,3886.1,3886.0,1.80133813]
[1761913090995,0.0002,3886.1,3886.0,1.80133813]
[1761913091504,0.0002,3886.1,3886.0,2.16289337]
[1761913091865,0.0002,3886.1,3886.0,0.36155524]
[1761913092062,0.4959,3886.1,3886.0,1.80133813]
[1761913092369,0.4959,3886.1,3886.0,1.92933813]
[1761913092370,0.0002,3886.1,3886.0,1.92933813]
[1761913092775,0.9786,3886.1,3886.0,0.128]
[1761913092981,0.9786,3886.1,3885.8,0.128]
[1761913093213,0.4827,3886.0,3885.8,0.128]
[1761913093515,0.6693,3885.9,3885.8,1.92943085]
[1761913093883,1.152,3885.9,3885.8,1.92943085]
[1761913094210,1.152,3885.9,3885.8,0.128]
[1761913094581,1.152,3885.9,3885.6,0.002]
[1761913094776,0.1282,3886.1,3885.8,1.80143085]
[1761913094988,0.0002,3886.1,3886.0,1.80133813]
[1761913095501,0.9786,3886.1,3885.9,0.14082973]
[1761913095826,0.1766,3886.0,3885.9,1.94221314]
[1761913096129,0.6593,3886.0,3885.9,1.80138341]
[1761913096494,0.6593,3886.0,3885.8,0.01283006]
[1761913096713,1.1666,3885.9,3885.8,1.81426091]
[1761913097788,1.1666,3885.9,3885.6,1.93151397]
[1761913097789,1.29608,3885.9,3885.6,0.002]
[1761913098000,0.4957,3885.7,3885.6,0.002]
[1761913098427,0.974,3885.7,3885.6,0.002]
[1761913098791,2.77547721,3885.7,3885.6,0.002]
[1761913099017,3.08832969,3885.7,3885.6,0.002]
[1761913099422,1.28685248,3885.7,3885.6,0.002]
[1761913099620,2.77547721,3885.7,3885.6,0.002]
[1761913100524,0.974,3885.7,3885.6,0.002]
[1761913100729,1.00616923,3885.7,3885.6,0.002]
[1761913100930,4.61283044,3885.7,3885.6,0.002]
[1761913101132,2.40584923,3885.7,3885.6,0.002]
[1761913101301,2.66557415,3885.7,3885.6,0.002]
[1761913101715,4.46705136,3885.7,3885.6,0.002]
[1761913102230,4.87255536,3885.7,3885.6,0.002]
[1761913102433,16.51762836,3885.7,3885.6,0.002]
[1761913102732,16.48545913,3885.7,3885.6,0.002]
[1761913103318,15.92198713,3885.7,3885.6,0.002]
[1761913103802,10.14874113,3885.7,3885.6,0.002]
[1761913104001,9.74323713,3885.7,3885.6,0.002]
[1761913104202,27.58253888,3885.7,3885.6,0.002]
[1761913104395,15.23337813,3885.7,3885.6,0.002]
[1761913105211,20.95636313,3885.7,3885.6,0.002]
[1761913105412,21.36013637,3885.7,3885.6,0.002]
[1761913106044,20.95636313,3885.7,3885.6,0.002]
[1761913106248,28.3651783,3885.4,3885.3,1e-08]
[1761913106423,20.7898163,3885.4,3885.3,1e-08]
[1761913106618,21.2707163,3885.4,3885.3,1e-08]
[1761913107246,21.67011805,3885.4,3885.3,1e-08]
[1761913107661,34.66810205,3885.4,3885.3,1e-08]
[1761913108361,13.25059099,3885.4,3885.3,1e-08]
[1761913108562,12.45784499,3885.4,3885.3,1e-08]
[1761913109056,28.83035182,3885.4,3885.3,1e-08]
[1761913109243,27.67643699,3885.4,3885.3,1e-08]
[1761913109447,26.43893699,3885.4,3885.3,1e-08]
[1761913110037,14.90272099,3885.4,3885.3,1e-08]
[1761913110937,20.59073699,3885.4,3885.3,1e-08]
[1761913111476,14.94416499,3885.4,3885.3,1e-08]
[1761913112146,24.65891598,3885.4,3885.3,1e-08]
[1761913112656,1.52768,3885.3,3884.3,0.002]
[1761913112845,18.00565211,3884.4,3884.3,0.002]
[1761913113042,3.90196411,3884.4,3884.3,0.002]
[1761913113245,15.86959911,3884.4,3884.3,0.002]
[1761913113453,15.83741911,3884.4,3884.3,0.002]
[1761913113647,15.94064078,3884.4,3884.3,0.002]
[1761913114045,16.39856478,3884.4,3884.3,0.002]
[1761913116172,22.67169678,3884.4,3884.3,0.002]
[1761913116353,23.07029853,3884.4,3884.3,0.002]
[1761913116758,20.30779233,3884.4,3884.3,0.002]
[1761913116959,16.75122633,3884.4,3884.3,0.002]
[1761913117273,23.32928578,3884.4,3884.3,0.002]
[1761913117473,23.07134478,3884.4,3884.3,0.002]
[1761913118272,23.07134478,3884.4,3883.9,0.002]
[1761913118273,29.4858227,3884.0,3883.9,0.002]
[1761913118477,28.1060027,3884.0,3883.9,0.002]
[1761913118678,21.1547647,3884.0,3883.9,0.002]
[1761913118900,16.81412269,3884.0,3883.9,0.002]
[1761913119104,4.48709269,3884.0,3883.9,0.002]
[1761913119321,24.967286,3884.0,3883.9,0.002]
[1761913119631,24.93510269,3884.0,3883.9,0.002]
[1761913119993,25.33915003,3884.0,3883.9,0.002]
[1761913120212,25.60436003,3884.0,3883.9,0.002]
[1761913120423,26.00376178,3884.0,3883.9,0.002]
[1761913120727,25.75963478,3884.0,3883.9,0.002]
[1761913120930,24.35995478,3884.0,3883.9,0.002]
[1761913121124,25.75963478,3884.0,3883.9,0.002]
[1761913121332,25.14497378,3884.0,3883.9,0.002]
[1761913121688,20.45856178,3884.0,3883.9,0.002]
[1761913121894,17.16007703,3884.0,3883.9,0.002]
[1761913122324,20.21186703,3884.0,3883.9,0.002]
[1761913122541,21.20015572,3884.0,3883.9,0.002]
[1761913122729,20.61580621,3884.0,3883.9,0.002]
[1761913123114,10.51821721,3884.0,3883.9,0.002]
[1761913123318,19.86783721,3884.0,3883.9,0.002]
[1761913124435,11.01420221,3884.0,3883.9,0.002]
[1761913124995,4.48552787,3884.0,3883.9,0.002]
[1761913125230,8.05810318,3884.0,3883.9,0.002]
[1761913125431,8.43142387,3884.0,3883.9,0.002]
[1761913125730,8.02748469,3884.0,3883.9,0.002]
[1761913126516,6.88542669,3884.0,3883.9,0.002]
[1761913127246,1.69518,3884.0,3883.9,0.002]
[1761913127744,3.52962901,3884.0,3883.9,0.002]
[1761913128229,3.99762901,3884.0,3883.9,0.002]
[1761913128849,1.72736331,3884.0,3883.9,0.002]
[1761913129045,5.77962901,3884.0,3883.9,0.002]
[1761913129345,6.2154457,3884.0,3883.9,0.002]
[1761913132458,0.1563,3884.2,3882.9,0.95587248]
[1761913132750,0.03318,3884.4,3883.0,1.41255115]
[1761913132948,0.03318,3884.4,3883.7,1.80240134]
[1761913133250,0.03318,3884.4,3883.4,1.81539202]
[1761913133629,0.03218083,3884.3,3883.5,1.80249774]
[1761913133876,0.51498083,3884.3,3883.3,1.80258933]
[1761913134066,0.03218083,3884.3,3883.1,0.41711568]
[1761913134263,0.03218083,3884.3,3883.4,1.80251332]
[1761913134503,0.03218083,3884.3,3882.7,1.39968]
[1761913134504,0.03218083,3884.3,3883.5,1.80248948]
[1761913134665,0.03218165,3884.2,3883.6,1.80244649]
[1761913134858,0.005,3883.7,3882.8,1.7978227]
[1761913135094,0.005,3883.7,3882.3,1.39968]
[1761913135278,0.005,3883.7,3882.2,1.79810133]
[1761913135279,0.005,3883.7,3883.3,1.80257708]
[1761913135492,0.005,3883.7,3883.4,1.80253518]
[1761913137111,0.005,3883.7,3882.4,0.31977813]
[1761913137402,0.005,3883.7,3883.3,1.80257072]
[1761913137605,0.005,3883.7,3882.4,2.1227839]
[1761913137914,0.005,3883.7,3883.2,1.8026361]
[1761913138406,0.005,3883.7,3882.5,1.61195839]
[1761913138407,0.005,3883.7,3883.3,1.80258819]
[1761913138606,0.005,3883.7,3882.6,1.80291557]
[1761913138827,0.005,3883.7,3882.5,0.21227839]
[1761913138976,0.51498663,3883.6,3882.2,0.01287977]
[1761913139323,1.80249899,3883.5,3882.5,1.80292074]
[1761913139488,0.51498663,3883.6,3882.6,1.80290496]
[1761913139489,0.03218828,3883.4,3882.6,1.80290496]
[1761913139693,0.03218828,3883.4,3882.7,1.80286171]